bitfinex-derivatives/quotes_BTCF0:USTF0_20240913
["timestamp","ask_amount","ask_price","bid_price","bid_amount"]
[1726219704132,0.568782,58154.0,58153.0,0.21888587]
[1726219705533,0.448782,58154.0,58153.0,0.21888587]
[1726219706056,0.448782,58154.0,58153.0,0.33888587]
[1726219706537,0.3628,58154.0,58153.0,0.42486987]
[1726219706743,0.004,58159.0,58153.0,0.52765184]
[1726219706939,0.3608,58160.0,58157.0,0.12]
[1726219707140,0.3608,58160.0,58159.0,0.085975]
[1726219707444,0.3608,58160.0,58159.0,0.34659591]
[1726219708143,0.3608,58160.0,58159.0,0.30764962]
[1726219708646,0.151766,58165.0,58164.0,0.085968]
[1726219708839,0.151766,58165.0,58164.0,0.20486987]
[1726219709143,0.151766,58165.0,58164.0,0.32486987]
[1726219709847,0.151766,58165.0,58164.0,0.32586987]
[1726219710347,0.151766,58165.0,58164.0,0.33866276]
[1726219710648,0.151766,58165.0,58164.0,0.32786987]
[1726219711341,0.151766,58165.0,58164.0,0.208968]
[1726219711342,0.45266073,58165.0,58164.0,0.208968]
[1726219712638,0.2807922,58165.0,58164.0,0.208968]
[1726219714853,0.28075365,58165.0,58164.0,0.208968]
[1726219716247,0.72751965,58165.0,58164.0,0.003]
[1726219717855,1.92924565,58165.0,58164.0,0.003]
[1726219718152,1.99091261,58165.0,58164.0,0.003]
[1726219718851,0.085982,58155.0,58154.0,0.085982]
[1726219719055,0.69576965,58155.0,58154.0,0.085982]
[1726219719656,0.566782,58155.0,58154.0,0.20531369]
[1726219719841,0.446782,58155.0,58154.0,0.20531369]
[1726219720244,0.3618,58155.0,58154.0,0.21231369]
[1726219720439,0.3618,58155.0,58154.0,0.31507433]
[1726219720943,0.447781,58155.0,58154.0,0.31507433]
[1726219721149,0.38855972,58155.0,58154.0,0.32107433]
[1726219721347,0.30257872,58155.0,58154.0,0.32100089]
[1726219722754,0.30257872,58155.0,58154.0,0.21831369]
[1726219724449,0.30257872,58155.0,58154.0,0.32052814]
[1726219724647,0.38855972,58155.0,58154.0,0.32052814]
[1726219724853,0.90274072,58155.0,58154.0,0.21744443]
[1726219725047,0.90274072,58155.0,58154.0,0.013]
[1726219726546,0.81675972,58155.0,58154.0,0.098982]
[1726219728943,0.90274072,58155.0,58154.0,0.098982]
[1726219731361,0.81675972,58155.0,58154.0,0.098982]
[1726219731660,0.90274072,58155.0,58154.0,0.098982]
[1726219735058,0.74935972,58155.0,58154.0,0.098982]
[1726219737759,0.66337872,58155.0,58154.0,0.098982]
[1726219737967,0.30257872,58155.0,58154.0,0.098982]
[1726219738667,0.30257872,58155.0,58154.0,0.184964]
[1726219741666,0.25956472,58155.0,58154.0,0.32039466]
[1726219742166,0.25956472,58155.0,58154.0,0.40637666]
[1726219742370,0.25956472,58155.0,58154.0,0.32039466]
[1726219742566,0.25956472,58155.0,58154.0,0.21770101]
[1726219743267,0.34554572,58155.0,58154.0,0.21770101]
[1726219743470,0.25956472,58155.0,58154.0,0.21770101]
[1726219743679,0.34554572,58155.0,58154.0,0.21770101]
[1726219747871,0.34554572,58155.0,58154.0,0.21751673]
[1726219748869,0.34554572,58155.0,58154.0,0.30312928]
[1726219749574,0.38001073,58155.0,58154.0,0.098982]
[1726219751373,0.68087541,58155.0,58154.0,0.013]
[1726219751871,0.83546203,58155.0,58154.0,0.013]
[1726219752173,0.91506203,58155.0,58154.0,0.013]
[1726219752875,0.91499253,58155.0,58154.0,0.013]
[1726219754573,0.76040591,58155.0,58154.0,0.013]
[1726219755977,0.64040591,58155.0,58154.0,0.013]
[1726219756567,0.64040591,58155.0,58154.0,0.21737474]
[1726219756568,0.51112672,58155.0,58154.0,0.21737474]
[1726219757276,0.71710772,58155.0,58154.0,0.013]
[1726219757670,0.71710772,58155.0,58154.0,0.08150114]
[1726219758472,0.71710772,58155.0,58154.0,0.013]
[1726219760566,0.59710772,58155.0,58154.0,0.013]
[1726219760772,0.71710772,58155.0,58154.0,0.013]
[1726219764674,0.84621099,58155.0,58154.0,0.013]
[1726219766177,1.31024627,58155.0,58154.0,0.013]
[1726219766379,0.58864627,58155.0,58154.0,0.013]
[1726219766780,1.31024627,58155.0,58154.0,0.013]
[1726219767177,0.58864627,58155.0,58154.0,0.013]
[1726219767378,1.31024627,58155.0,58154.0,0.013]
[1726219767886,0.58864627,58155.0,58154.0,0.013]
[1726219768088,1.31024627,58155.0,58154.0,0.013]
[1726219771698,1.181143,58155.0,58154.0,0.013]
[1726219772796,0.895562,58155.0,58154.0,0.013]
[1726219772992,0.448781,58155.0,58154.0,0.098982]
[1726219773401,0.448781,58155.0,58154.0,0.30321171]
[1726219776298,0.448781,58155.0,58154.0,0.21759916]
[1726219777108,0.448781,58155.0,58154.0,0.18458054]
[1726219777414,0.448781,58155.0,58154.0,0.3032412]
[1726219777611,0.448781,58155.0,58154.0,0.31625199]
[1726219777807,0.448781,58155.0,58154.0,0.3032412]
[1726219778010,0.448781,58155.0,58154.0,0.21764266]
[1726219778213,0.534762,58155.0,58154.0,0.30325572]
[1726219778413,0.448781,58155.0,58154.0,0.21764266]
[1726219779115,0.448781,58155.0,58154.0,0.21766627]
[1726219779611,0.49088637,58155.0,58154.0,0.21766627]
[1726219779812,0.63983096,58155.0,58154.0,0.098982]
[1726219780004,0.72581196,58155.0,58154.0,0.013]
[1726219781617,0.63983096,58155.0,58154.0,0.013]
[1726219781815,0.72581196,58155.0,58154.0,0.013]
[1726219782021,0.63983096,58155.0,58154.0,0.013]
[1726219782205,0.72581196,58155.0,58154.0,0.013]
[1726219782509,0.72586325,58155.0,58154.0,0.013]
[1726219782918,0.36506325,58155.0,58154.0,0.013]
[1726219783110,0.66419465,58155.0,58154.0,0.013]
[1726219783305,0.72586325,58155.0,58154.0,0.013]
[1726219783914,0.80706325,58155.0,58154.0,0.00790963]
[1726219784517,0.80706325,58155.0,58145.0,0.004]
[1726219784518,0.085993,58147.0,58145.0,0.004]
[1726219784822,0.49956933,58147.0,58146.0,0.085994]
[1726219785121,0.60166052,58147.0,58146.0,0.085994]
[1726219785811,0.60266052,58147.0,58146.0,0.087994]
[1726219786717,0.447793,58147.0,58146.0,0.2069272]
[1726219786909,0.448793,58147.0,58146.0,0.2069272]
[1726219787119,0.087993,58147.0,58146.0,0.2069272]
[1726219787318,0.448793,58147.0,58146.0,0.2069272]
[1726219787510,0.087993,58147.0,58146.0,0.20692529]
[1726219787709,0.448793,58147.0,58146.0,0.087994]
[1726219787913,0.087993,58147.0,58146.0,0.087994]
[1726219788317,0.448793,58147.0,58146.0,0.087994]
[1726219789510,0.448793,58147.0,58146.0,0.20692125]
[1726219791421,0.448793,58147.0,58146.0,0.087994]
[1726219791620,0.448793,58147.0,58146.0,0.2069291]
[1726219792629,0.46147797,58147.0,58146.0,0.2069291]
[1726219793321,0.41845668,58147.0,58146.0,0.3097064]
[1726219795523,0.05765668,58147.0,58146.0,0.3097064]
[1726219795718,0.41845668,58147.0,58146.0,0.3097064]
[1726219797127,0.53845668,58147.0,58146.0,0.3097064]
[1726219798217,0.52577171,58147.0,58146.0,0.3097064]
[1726219799718,0.52577171,58147.0,58146.0,0.2069291]
[1726219799932,0.40577171,58147.0,58146.0,0.3097064]
[1726219800520,0.40577171,58147.0,58146.0,0.4297064]
[1726219801527,0.40577171,58147.0,58146.0,0.3269291]
[1726219801724,0.40577171,58147.0,58146.0,0.207994]
[1726219802629,0.002,58147.0,58146.0,0.293988]
[1726219802834,0.002,58147.0,58146.0,0.544876]
[1726219803024,0.085978,58157.0,58152.0,0.085985]
[1726219803333,0.085978,58157.0,58152.0,0.205985]
[1726219803831,0.08598,58156.0,58152.0,0.205985]
[1726219804325,0.085979,58157.0,58152.0,0.29197]
[1726219804526,0.3618,58153.0,58152.0,0.29297]
[1726219805725,0.3618,58153.0,58152.0,0.206985]
[1726219805920,0.3628,58153.0,58152.0,0.207985]
[1726219806121,0.448784,58153.0,58152.0,0.207985]
[1726219806931,0.3628,58153.0,58152.0,0.207985]
[1726219807630,0.3628,58153.0,58152.0,0.30676744]
[1726219809422,0.3628,58153.0,58152.0,0.82264744]
[1726219809830,0.3628,58153.0,58152.0,1.04381309]
[1726219810122,0.3628,58153.0,58152.0,1.04374592]
[1726219810828,0.002,58153.0,58152.0,1.04374592]
[1726219812128,0.002,58153.0,58152.0,0.94104976]
[1726219812934,0.446775,58159.0,58158.0,0.085976]
[1726219813236,0.446775,58159.0,58158.0,0.205976]
[1726219814028,0.447775,58159.0,58158.0,0.206976]
[1726219814335,0.448775,58159.0,58158.0,0.207976]
[1726219815436,0.448775,58159.0,58158.0,0.27640255]
[1726219816433,0.448775,58159.0,58158.0,0.207976]
[1726219818648,0.53475,58159.0,58158.0,0.087976]
[1726219819737,0.448775,58159.0,58158.0,0.087976]
[1726219823138,0.53475,58159.0,58158.0,0.087976]
[1726219824139,0.448775,58159.0,58158.0,0.087976]
[1726219824938,0.52581133,58159.0,58158.0,0.087976]
[1726219826638,0.52581133,58159.0,58158.0,0.002]
[1726219826639,0.64025265,58159.0,58158.0,0.002]
[1726219827135,0.64025265,58159.0,58158.0,0.08719992]
[1726219831046,0.24451557,58159.0,58158.0,0.08719992]
[1726219831241,0.5780378,58159.0,58158.0,0.08719992]
[1726219831538,0.63970451,58159.0,58158.0,0.08719992]
[1726219831842,0.448775,58159.0,58158.0,0.20593238]
[1726219832237,0.448775,58159.0,58158.0,0.30860132]
[1726219832836,0.448775,58159.0,58158.0,0.20593238]
[1726219833036,0.087975,58159.0,58158.0,0.20593238]
[1726219833352,0.65475,58159.0,58158.0,0.20593238]
[1726219833647,0.568775,58159.0,58158.0,0.20593238]
[1726219834347,0.568775,58159.0,58158.0,0.30860132]
[1726219836036,0.568775,58159.0,58158.0,0.30866114]
[1726219838448,0.52576153,58159.0,58158.0,0.30866114]
[1726219839148,0.16496153,58159.0,58158.0,0.30838416]
[1726219839343,0.52576153,58159.0,58158.0,0.30838416]
[1726219839851,0.35627339,58159.0,58153.0,0.205984]
[1726219840052,0.085978,58157.0,58153.0,0.205984]
[1726219840354,0.12964801,58156.0,58155.0,0.085981]
[1726219840749,0.21562701,58156.0,58155.0,0.085981]
[1726219840949,0.21486767,58156.0,58155.0,0.085981]
[1726219841955,0.21586767,58156.0,58155.0,0.086981]
[1726219842349,0.21686767,58156.0,58155.0,0.087981]
[1726219843660,0.42284667,58156.0,58155.0,0.087981]
[1726219844662,0.33686767,58156.0,58155.0,0.087981]
[1726219844867,0.33686767,58156.0,58155.0,0.207981]
[1726219844868,0.21686767,58156.0,58155.0,0.207981]
[1726219846960,0.087979,58156.0,58155.0,0.46933517]
[1726219847262,0.087979,58156.0,58155.0,0.327214]
[1726219847560,0.087979,58156.0,58155.0,0.46934778]
[1726219849065,0.087979,58156.0,58155.0,0.34934778]
[1726219849453,0.087979,58156.0,58155.0,0.31000685]
[1726219850444,0.293958,58156.0,58155.0,0.26336095]
[1726219850650,0.379937,58156.0,58155.0,0.22402461]
[1726219850854,0.379937,58156.0,58155.0,0.12133531]
[1726219851063,0.379937,58156.0,58155.0,0.002]
[1726219851453,0.293958,58156.0,58155.0,0.002]
[1726219851754,0.30699,58156.0,58155.0,0.002]
[1726219854861,0.43564414,58156.0,58155.0,0.002]
[1726219859259,0.08599,58149.0,58148.0,0.004]
[1726219859461,0.8755228,58149.0,58148.0,0.085991]
[1726219859758,0.84310568,58149.0,58148.0,0.085991]
[1726219860463,0.98978968,58149.0,58148.0,0.085991]
[1726219860765,0.84392346,58149.0,58148.0,0.086991]
[1726219860972,0.84492346,58149.0,58148.0,0.086991]
[1726219861757,0.63893346,58149.0,58148.0,0.086991]
[1726219861958,0.44879,58149.0,58148.0,0.20638538]
[1726219864064,0.44879,58149.0,58148.0,0.20638415]
[1726219865964,0.3608,58152.0,58151.0,0.171974]
[1726219866263,0.3608,58152.0,58151.0,0.51415876]
[1726219866466,0.3608,58152.0,58151.0,0.49735415]
[1726219866969,0.3608,58152.0,58151.0,0.63929655]
[1726219867269,0.3618,58152.0,58151.0,0.63929655]
[1726219867469,0.3628,58152.0,58151.0,0.63929655]
[1726219868268,0.568785,58152.0,58151.0,0.20538015]
[1726219868474,0.568785,58152.0,58151.0,0.30805438]
[1726219868862,0.568785,58152.0,58151.0,0.20538015]
[1726219869874,0.72294251,58152.0,58151.0,0.085987]
[1726219870077,0.60294251,58152.0,58151.0,0.085987]
[1726219870270,0.085993,58149.0,58148.0,0.085991]
[1726219870573,0.16201307,58149.0,58148.0,0.085991]
[1726219871272,0.22342008,58149.0,58148.0,0.085991]
[1726219871462,0.30044015,58149.0,58148.0,0.087991]
[1726219871669,0.30144015,58149.0,58148.0,0.089991]
[1726219872171,0.16401307,58149.0,58148.0,0.089991]
[1726219874963,0.52481307,58149.0,58148.0,0.089991]
[1726219876275,0.66224015,58149.0,58148.0,0.089991]
[1726219876871,0.67221308,58149.0,58148.0,0.12346502]
[1726219877472,0.75820608,58149.0,58148.0,0.12346502]
[1726219877682,0.085996,58145.0,58142.0,0.10267423]
[1726219877870,0.085996,58145.0,58140.0,0.10267423]
[1726219877871,0.3608,58143.0,58140.0,0.10267423]
[1726219878071,0.086003,58140.0,58139.0,0.10267423]
[1726219878279,0.086005,58139.0,58138.0,0.10267423]
[1726219878585,0.086014,58135.0,58134.0,0.086012]
[1726219879475,0.086014,58135.0,58134.0,0.18880168]
[1726219879672,0.086014,58135.0,58134.0,0.086012]
[1726219880472,0.086016,58132.0,58131.0,0.086016]
[1726219880674,0.3608,58132.0,58130.0,0.09290903]
[1726219881071,0.446815,58132.0,58131.0,0.086016]
[1726219881266,0.446815,58132.0,58131.0,0.18879551]
[1726219882167,0.447815,58132.0,58131.0,0.18879551]
[1726219882578,0.447815,58132.0,58131.0,0.086016]
[1726219882785,0.3618,58132.0,58129.0,0.086018]
[1726219883180,0.086018,58130.0,58129.0,0.086018]
[1726219883387,0.04298562,58130.0,58129.0,0.086018]
[1726219884276,0.04398562,58130.0,58129.0,0.086018]
[1726219884480,0.086021,58128.0,58127.0,0.10277951]
[1726219884689,0.086022,58127.0,58126.0,0.086021]
[1726219886579,0.087022,58127.0,58126.0,0.086021]
[1726219886888,0.087022,58127.0,58122.0,0.08603]
[1726219886889,0.08603,58123.0,58122.0,0.08603]
[1726219888271,0.08803,58123.0,58122.0,0.08603]
[1726219889786,0.08703,58123.0,58122.0,0.08603]
[1726219890085,0.08803,58123.0,58122.0,0.08603]
[1726219890488,0.08803,58123.0,58121.0,0.66408002]
[1726219890489,0.17206,58122.0,58121.0,0.66408002]
[1726219890680,0.17206,58122.0,58121.0,0.7309335]
[1726219890876,0.17206,58122.0,58121.0,0.66256002]
[1726219891187,0.17206,58122.0,58121.0,0.74859102]
[1726219891885,0.17306,58122.0,58121.0,0.74859102]
[1726219892183,0.17306,58122.0,58121.0,0.7998721]
[1726219892785,0.17306,58122.0,58121.0,0.74859102]
[1726219893086,0.17406,58122.0,58121.0,0.74859102]
[1726219895179,0.53486,58122.0,58121.0,0.74859102]
[1726219895587,0.3628,58122.0,58121.0,0.74859102]
[1726219895788,0.3628,58122.0,58121.0,0.83462202]
[1726219896088,0.3608,58127.0,58126.0,0.086024]
[1726219896286,0.3608,58127.0,58126.0,0.372048]
[1726219896483,0.3608,58127.0,58126.0,0.42330345]
[1726219896675,0.3608,58127.0,58126.0,0.372048]
[1726219896881,0.004,58134.0,58133.0,0.086013]
[1726219897083,0.086011,58135.0,58134.0,0.086012]
[1726219897688,0.086011,58135.0,58131.0,0.086016]
[1726219897689,0.086012,58134.0,58131.0,0.086016]
[1726219897891,0.3608,58132.0,58131.0,0.086016]
[1726219898086,0.446815,58132.0,58131.0,0.086016]
[1726219898287,0.002,58134.0,58133.0,0.086013]
[1726219898987,0.002,58134.0,58133.0,0.22327886]
[1726219899291,0.003,58134.0,58133.0,0.22327886]
[1726219899477,0.003,58134.0,58133.0,0.172026]
[1726219899883,0.003,58134.0,58133.0,0.173026]
[1726219900082,0.003,58134.0,58133.0,0.29048109]
[1726219900293,0.004,58141.0,58133.0,0.80652109]
[1726219900495,0.3608,58143.0,58142.0,0.086]
[1726219901591,0.3618,58143.0,58142.0,0.15437482]
[1726219903697,0.3628,58143.0,58142.0,0.15637482]
[1726219906697,0.3628,58143.0,58142.0,0.288]
[1726219909712,0.448799,58143.0,58142.0,0.15640768]
[1726219913698,0.448799,58143.0,58142.0,0.088]
[1726219915996,0.087999,58143.0,58142.0,0.088]
[1726219918110,0.086009,58136.0,58135.0,0.00152]
[1726219918309,0.086013,58134.0,58133.0,0.086011]
[1726219919698,0.087013,58134.0,58133.0,0.087011]
[1726219920697,0.086013,58134.0,58133.0,0.086011]
[1726219920893,0.088013,58134.0,58133.0,0.089011]
[1726219922206,0.088013,58134.0,58133.0,0.20646859]
[1726219922702,0.088013,58134.0,58133.0,0.20546859]
[1726219923098,0.087013,58134.0,58133.0,0.20546859]
[1726219923301,0.448813,58134.0,58133.0,0.088011]
[1726219923700,0.448813,58134.0,58133.0,0.29127026]
[1726219924003,0.3628,58134.0,58133.0,0.29127026]
[1726219924204,0.002,58134.0,58133.0,0.5777255]
[1726219925613,0.002,58134.0,58133.0,0.71799872]
[1726219925908,0.002,58134.0,58133.0,0.71799362]
[1726219926107,0.086008,58137.0,58136.0,0.086009]
[1726219926299,0.086008,58137.0,58136.0,0.30651409]
[1726219927509,0.087008,58137.0,58136.0,0.30651409]
[1726219927901,0.088008,58137.0,58136.0,0.30851409]
[1726219928301,0.088008,58137.0,58136.0,0.205692]
[1726219928609,0.04497988,58137.0,58136.0,0.205692]
[1726219929203,0.04497988,58137.0,58136.0,0.088009]
[1726219929204,0.081182,58137.0,58136.0,0.088009]
[1726219930912,0.08118366,58137.0,58136.0,0.088009]
[1726219932704,0.08118366,58137.0,58136.0,0.10080602]
[1726219933210,0.08118366,58137.0,58136.0,0.088009]
[1726219936017,0.08117771,58137.0,58136.0,0.088009]
[1726219937214,0.04497988,58137.0,58136.0,0.30827571]
[1726219938916,0.21699588,58137.0,58136.0,0.22226671]
[1726219939219,0.21699588,58137.0,58136.0,0.20515213]
[1726219939418,0.21699588,58137.0,58136.0,0.002]
[1726219939724,0.258033,58135.0,58134.0,0.08575437]
[1726219939914,0.458033,58135.0,58134.0,0.20332991]
[1726219940122,0.974073,58135.0,58134.0,0.20332991]
[1726219940327,0.974073,58135.0,58134.0,0.08575437]
[1726219941123,0.975073,58135.0,58134.0,0.08575437]
[1726219941312,0.172024,58134.0,58133.0,0.08575437]
[1726219941622,0.172024,58134.0,58133.0,0.20322629]
[1726219941623,0.971724,58134.0,58133.0,0.20322629]
[1726219942726,0.972724,58134.0,58133.0,0.20322629]
[1726219943025,1.059736,58134.0,58133.0,0.20422629]
[1726219943234,1.059736,58134.0,58133.0,0.001]
[1726219943625,1.059736,58134.0,58133.0,0.0695598]
[1726219944124,1.059736,58134.0,58133.0,0.001]
[1726219945228,0.172048,58126.0,58125.0,0.004]
[1726219945434,0.5608,58126.0,58120.0,0.05141991]
[1726219945726,0.5608,58126.0,58119.0,0.05141991]
[1726219945727,0.086033,58120.0,58119.0,0.05141991]
[1726219945920,0.286031,58121.0,58118.0,0.13745491]
[1726219946121,0.0816,58120.0,58118.0,0.13745491]
[1726219946323,0.0816,58120.0,58117.0,0.41221991]
[1726219946519,0.086036,58118.0,58117.0,0.41221991]
[1726219946720,0.2,58118.0,58116.0,0.086038]
[1726219946926,0.086037,58117.0,58116.0,0.086038]
[1726219949742,0.088037,58117.0,58116.0,0.086038]
[1726219952232,0.088037,58117.0,58116.0,0.20389896]
[1726219954323,0.088037,58117.0,58116.0,0.28943707]
[1726219955631,0.088037,58117.0,58116.0,0.28937784]
[1726219956031,0.002,58117.0,58116.0,0.28937784]
[1726219956231,0.002,58117.0,58116.0,0.28936269]
[1726219956826,0.088037,58117.0,58116.0,0.28936269]
[1726219958124,0.088037,58117.0,58116.0,0.20383973]
[1726219960438,0.088037,58117.0,58116.0,0.28936827]
[1726219960631,0.088037,58117.0,58116.0,0.20383973]
[1726219960939,0.002,58117.0,58116.0,0.48987873]
[1726219961131,0.002,58117.0,58116.0,0.85067873]
[1726219961334,0.002,58117.0,58116.0,0.732877]
[1726219961839,0.086031,58121.0,58120.0,0.08603]
[1726219962144,0.086031,58121.0,58120.0,0.28869464]
[1726219962441,0.086031,58121.0,58120.0,0.20317445]
[1726219962949,0.087031,58121.0,58120.0,0.20317445]
[1726219963539,0.088031,58121.0,58120.0,0.20417445]
[1726219967046,0.088031,58121.0,58120.0,0.30679868]
[1726219967249,0.002,58121.0,58120.0,0.89240045]
[1726219967548,0.002,58121.0,58120.0,1.64059759]
[1726219969146,0.002,58121.0,58120.0,1.04059759]
[1726219970347,0.002,58121.0,58120.0,1.24059759]
[1726219973349,0.31976312,58125.0,58124.0,0.172054]
[1726219973648,0.31976312,58125.0,58124.0,0.28919845]
[1726219974645,0.40678812,58125.0,58124.0,0.20417145]
[1726219974851,0.40678812,58125.0,58124.0,0.30701959]
[1726219975052,0.40778812,58125.0,58124.0,0.30901959]
[1726219976651,0.088025,58125.0,58124.0,0.30901959]
[1726219977247,0.37405,58125.0,58124.0,0.30901959]
[1726219977451,0.38699567,58125.0,58124.0,0.12014445]
[1726219977644,0.47302067,58125.0,58124.0,0.20587208]
[1726219978456,0.47302067,58125.0,58124.0,0.08872763]
[1726219978757,0.47302067,58125.0,58124.0,0.20601641]
[1726219979060,0.98914067,58125.0,58124.0,0.08872763]
[1726219979356,0.98914067,58125.0,58124.0,0.20602694]
[1726219979944,0.98914067,58125.0,58124.0,0.08872763]
[1726219980955,0.976195,58125.0,58124.0,0.08872763]
[1726219981560,0.460075,58125.0,58124.0,0.08872763]
[1726219981860,0.088025,58125.0,58124.0,0.003]
[1726219982050,0.088025,58125.0,58124.0,0.089027]
[1726219984253,0.088025,58125.0,58124.0,0.15761894]
[1726219984557,0.088025,58125.0,58124.0,0.089027]
[1726219986257,0.088025,58125.0,58124.0,0.15761894]
[1726219988360,0.088025,58125.0,58124.0,0.089027]
[1726219989765,0.088025,58125.0,58124.0,0.20623465]
[1726219992168,0.208025,58125.0,58124.0,0.20623465]
[1726219998574,0.208025,58125.0,58124.0,0.34597657]
[1726220004879,0.208025,58125.0,58124.0,0.089027]
[1726220008286,0.22069998,58125.0,58124.0,0.089027]
[1726220011874,0.22069998,58125.0,58124.0,0.34616548]
[1726220012475,0.208025,58125.0,58124.0,0.34616548]
[1726220013080,0.208025,58125.0,58124.0,0.20633675]
[1726220013280,0.088025,58125.0,58124.0,0.20633675]
[1726220013584,0.086016,58132.0,58129.0,0.086019]
[1726220013794,0.086018,58130.0,58129.0,0.46303668]
[1726220014089,0.4808,58133.0,58130.0,0.086015]
[1726220014090,0.086017,58131.0,58130.0,0.086015]
[1726220014284,0.086017,58131.0,58130.0,0.20332475]
[1726220015184,0.086017,58131.0,58130.0,0.30624385]
[1726220016582,0.087017,58131.0,58130.0,0.30888626]
[1726220016783,0.174034,58131.0,58130.0,0.22587126]
[1726220016981,0.174034,58131.0,58130.0,0.12295216]
[1726220017693,0.088017,58131.0,58130.0,0.20897016]
[1726220018394,0.04498244,58131.0,58130.0,0.20897016]
[1726220019887,0.08213274,58131.0,58130.0,0.092018]
[1726220026487,0.08192873,58131.0,58130.0,0.092018]
[1726220026897,0.40578244,58131.0,58130.0,0.092018]
[1726220029589,0.04498244,58131.0,58130.0,0.092018]
[1726220029797,0.40578244,58131.0,58130.0,0.092018]
[1726220031194,0.49179844,58131.0,58130.0,0.006]
[1726220031697,0.40578244,58131.0,58130.0,0.092018]
[1726220031898,0.49179844,58131.0,58130.0,0.092018]
[1726220032501,0.49179844,58131.0,58130.0,0.006]
[1726220034996,0.62441422,58131.0,58130.0,0.006]
[1726220035198,0.79618934,58131.0,58130.0,0.006]
[1726220035499,0.79618934,58131.0,58130.0,0.092018]
[1726220036795,0.62441422,58131.0,58130.0,0.092018]
[1726220038195,0.26361422,58131.0,58130.0,0.092018]
[1726220038593,0.62441422,58131.0,58130.0,0.092018]
[1726220038802,0.79618934,58131.0,58130.0,0.092018]
[1726220039896,0.79618934,58131.0,58130.0,0.006]
[1726220040208,0.62441422,58131.0,58130.0,0.006]
[1726220040505,0.79618934,58131.0,58130.0,0.006]
[1726220041006,0.79618934,58131.0,58122.0,0.090029]
[1726220041007,0.172056,58123.0,58122.0,0.090029]
[1726220041194,0.73267018,58123.0,58122.0,0.086029]
[1726220041802,0.64664218,58123.0,58122.0,0.086029]
[1726220041997,0.566828,58123.0,58122.0,0.20325828]
[1726220042691,0.566828,58123.0,58122.0,0.3062082]
[1726220042893,0.567828,58123.0,58122.0,0.3062082]
[1726220043094,0.568828,58123.0,58122.0,0.30620525]
[1726220043501,0.568828,58123.0,58122.0,0.20325828]
[1726220045104,0.208028,58123.0,58122.0,0.20325828]
[1726220045405,0.568828,58123.0,58122.0,0.20325828]
[1726220049894,0.568828,58123.0,58122.0,0.086029]
[1726220050704,0.208028,58123.0,58122.0,0.086029]
[1726220050903,0.568828,58123.0,58122.0,0.086029]
[1726220051302,0.208028,58123.0,58122.0,0.086029]
[1726220051511,0.568828,58123.0,58122.0,0.086029]
[1726220051706,0.448828,58123.0,58122.0,0.086029]
[1726220052111,0.448828,58123.0,58122.0,0.13748542]
[1726220052512,0.088028,58123.0,58122.0,0.13748542]
[1726220052918,0.088028,58123.0,58122.0,0.086029]
[1726220055315,0.088028,58123.0,58122.0,0.13748713]
[1726220055503,0.208028,58123.0,58122.0,0.086029]
[1726220056912,0.122,58123.0,58122.0,0.34286021]
[1726220057413,0.208028,58123.0,58122.0,0.34286021]
[1726220059508,0.208028,58123.0,58122.0,0.3419526]
[1726220061511,0.22095861,58123.0,58122.0,0.3419526]
[1726220061716,0.208028,58123.0,58122.0,0.3419526]
[1726220063513,0.16498958,58123.0,58122.0,0.3419526]
[1726220065113,0.17818453,58123.0,58122.0,0.20278451]
[1726220066221,0.16498958,58123.0,58122.0,0.20278451]
[1726220066610,0.3608,58124.0,58123.0,0.086028]
[1726220066809,0.3608,58124.0,58123.0,0.20278351]
[1726220067416,0.446828,58124.0,58123.0,0.20278351]
[1726220068122,0.447828,58124.0,58123.0,0.20378351]
[1726220068725,0.448828,58124.0,58123.0,0.20478351]
[1726220071912,0.52982075,58124.0,58123.0,0.088028]
[1726220074225,0.5299983,58124.0,58123.0,0.088028]
[1726220074523,0.66757394,58124.0,58123.0,0.088028]
[1726220074921,0.5299983,58124.0,58123.0,0.088028]
[1726220075128,0.1691983,58124.0,58123.0,0.088028]
[1726220075327,0.52972556,58124.0,58123.0,0.088028]
[1726220077334,0.16892556,58124.0,58123.0,0.088028]
[1726220077630,0.52972556,58124.0,58123.0,0.088028]
[1726220078716,0.16892556,58124.0,58123.0,0.088028]
[1726220078921,0.52972556,58124.0,58123.0,0.088028]
[1726220079318,0.52977131,58124.0,58123.0,0.088028]
[1726220079723,0.54294434,58124.0,58123.0,0.088028]
[1726220079918,0.46200103,58124.0,58123.0,0.088028]
[1726220080123,0.58200103,58124.0,58123.0,0.20457256]
[1726220081928,0.58200103,58124.0,58123.0,0.088028]
[1726220082830,0.49597303,58124.0,58123.0,0.088028]
[1726220083132,0.49597303,58124.0,58123.0,0.20460551]
[1726220083133,0.37597303,58124.0,58123.0,0.20460551]
[1726220083328,0.37597303,58124.0,58123.0,0.32110742]
[1726220083922,0.46200003,58124.0,58123.0,0.32110742]
[1726220084335,0.58200003,58124.0,58123.0,0.32110742]
[1726220085035,0.22120003,58124.0,58123.0,0.32110742]
[1726220085238,0.22120003,58124.0,58123.0,0.20460551]
[1726220087930,0.22120003,58124.0,58123.0,0.088028]
[1726220089537,0.22120003,58124.0,58123.0,0.34330143]
[1726220091135,0.10120003,58124.0,58123.0,0.20448689]
[1726220091635,0.58200003,58124.0,58123.0,0.20448689]
[1726220092138,0.66802703,58124.0,58123.0,0.11845889]
[1726220092350,0.58200003,58124.0,58123.0,0.20448689]
[1726220092641,0.66802703,58124.0,58123.0,0.20448689]
[1726220094739,0.74914117,58124.0,58123.0,0.088028]
[1726220095128,0.66311417,58124.0,58123.0,0.088028]
[1726220095442,0.54311417,58124.0,58123.0,0.088028]
[1726220099944,0.76791405,58124.0,58123.0,0.088028]
[1726220100243,0.65761492,58124.0,58123.0,0.088028]
[1726220100852,0.59591618,58124.0,58123.0,0.088028]
[1726220101143,0.59588541,58124.0,58123.0,0.088028]
[1726220101550,0.59588548,58124.0,58123.0,0.088028]
[1726220101749,0.46200003,58124.0,58123.0,0.34356097]
[1726220108444,0.41896221,58124.0,58123.0,0.34356097]
[1726220109755,0.41896221,58124.0,58123.0,0.088028]